bitfinex/quotes_ETHUSD_20240608
["timestamp","ask_amount","ask_price","bid_price","bid_amount"]
[1717816163125,1.3081846,3688.3,3687.8,2.71162]
[1717816163327,1.24927555,3688.2,3687.8,2.71162]
[1717816165365,0.5861846,3688.1,3687.8,2.71162]
[1717816165948,0.66309095,3688.0,3687.8,2.71162]
[1717816166875,0.66309095,3687.9,3687.8,2.71162]
[1717816167078,0.94695675,3688.3,3687.8,2.71162]
[1717816167079,0.5861846,3688.2,3687.8,2.71162]
[1717816167265,1.24927555,3688.1,3687.8,2.71162]
[1717816167574,0.66309095,3688.1,3687.8,2.71162]
[1717816167876,1.24927555,3688.1,3687.8,2.71162]
[1717816168175,0.66309095,3688.1,3687.8,2.71162]
[1717816168371,1.24927555,3688.1,3687.8,2.71162]
[1717816168553,0.66309095,3688.1,3687.8,2.71162]
[1717816168875,0.66309095,3688.1,3687.9,2.2936]
[1717816169371,0.5861846,3688.4,3687.9,2.2936]
[1717816169570,0.66309095,3688.0,3687.9,2.2936]
[1717816169774,0.5861846,3688.3,3688.0,2.71148]
[1717816170073,0.24130509,3688.4,3688.0,2.71148]
[1717816170074,0.82748969,3688.4,3688.0,2.71148]
[1717816171751,0.5861846,3688.3,3688.0,2.71148]
[1717816172047,0.82748969,3688.4,3688.0,2.71148]
[1717816172783,0.5861846,3688.4,3688.2,2.71134]
[1717816173109,1.3081846,3689.0,3688.6,2.71102]
[1717816173267,1.3081846,3689.0,3688.7,2.3632]
[1717816173643,0.722,3689.0,3688.7,2.3632]
[1717816174281,0.66312805,3688.9,3688.7,2.3632]
[1717816187614,0.722,3689.1,3688.7,2.3632]
[1717816187910,0.22713426,3689.0,3688.7,2.3632]
[1717816188136,0.66333834,3688.9,3688.7,2.3632]
[1717816190221,0.66333834,3688.9,3688.8,2.7109]
[1717816209908,3.79193834,3688.9,3688.8,2.7109]
[1717816210309,4.37793376,3688.9,3688.8,2.7109]
[1717816210512,4.37793376,3688.9,3688.4,2.71118]
[1717816211047,0.58599542,3688.8,3688.4,2.71118]
[1717816211544,0.66329298,3688.7,3688.4,2.71118]
[1717816211708,0.58599542,3688.8,3688.4,2.71118]
[1717816212047,0.66329298,3688.6,3688.4,2.71118]
[1717816212239,3.71459542,3688.9,3688.4,2.71118]
[1717816212744,0.66317752,3688.8,3688.4,2.71118]
[1717816216726,0.22713426,3689.0,3688.6,2.71105]
[1717816216949,0.66314041,3688.7,3688.6,2.71105]
[1717816217154,0.22713426,3689.0,3688.6,2.71105]
[1717816217464,0.66314041,3688.7,3688.6,2.71105]
[1717816217658,0.22713426,3689.0,3688.6,2.71105]
[1717816217828,0.66314041,3688.7,3688.6,2.71105]
[1717816218029,0.22713426,3689.0,3688.6,3.42008227]
[1717816218525,0.66321878,3688.9,3688.6,3.42008227]
[1717816222873,0.66321878,3688.9,3688.8,2.7109]
[1717816260933,1.2492142,3688.9,3688.8,2.7109]
[1717816263516,1.2492142,3688.9,3688.4,2.71118]
[1717816263727,1.30799542,3688.8,3688.4,2.71118]
[1717816263922,0.58599542,3688.7,3688.4,2.71118]
[1717816264149,1.28171563,3688.7,3688.4,2.71118]
[1717816264340,0.58599542,3688.7,3688.4,2.71118]
[1717816264650,0.69572021,3688.6,3688.4,2.71118]
[1717816288862,0.69562124,3688.5,3688.4,2.71118]
[1717816289071,0.58610618,3688.8,3688.4,2.71118]
[1717816289245,0.69562124,3688.7,3688.4,2.71118]
[1717816289442,0.58610618,3688.9,3688.4,3.216918]
[1717816289647,0.69551401,3688.8,3688.4,3.216918]
[1717816289968,0.81324044,3689.0,3688.7,2.71092]
[1717816294155,0.69551401,3688.9,3688.7,2.71092]
[1717816296756,0.69551401,3688.9,3688.7,5.20872]
[1717816297462,0.69551401,3688.9,3688.7,2.71092]
[1717816300755,0.69551401,3688.9,3688.8,2.4978]
[1717816301080,0.22713426,3689.0,3688.9,2.71083]
[1717816301267,0.9227761,3689.0,3688.9,2.71083]
[1717816309467,0.69564184,3689.0,3688.9,2.71083]
[1717816309687,0.722,3689.3,3688.9,2.71083]
[1717816309888,0.69588923,3689.2,3688.9,2.71083]
[1717816310101,0.722,3689.3,3688.9,2.71083]
[1717816310276,0.69588923,3689.2,3688.9,2.71083]
[1717816310601,0.722,3689.3,3688.9,2.71083]
[1717816310824,0.69588923,3689.1,3688.9,2.71083]
[1717816310972,0.722,3689.3,3688.9,2.71083]
[1717816311519,0.69588923,3689.2,3688.9,2.71083]
[1717816311723,0.722,3689.3,3688.9,2.71083]
[1717816312001,0.69588923,3689.1,3688.9,2.71083]
[1717816312201,1.30801703,3689.3,3688.9,2.71083]
[1717816312368,0.69588923,3689.0,3688.9,2.71083]
[1717816312865,0.20370444,3689.2,3688.9,2.71083]
[1717816313065,0.69588923,3689.1,3688.9,2.71083]
[1717816319167,1.28190626,3689.1,3688.9,2.71083]
[1717816320819,1.28190626,3689.1,3688.9,3.231693]
[1717816321000,0.69588923,3689.1,3689.0,3.1047]
[1717816321304,3.57841703,3690.0,3689.3,2.71054]
[1717816321508,1.25871553,3689.9,3689.3,2.71054]
[1717816321805,0.58601703,3689.8,3689.3,2.71054]
[1717816322168,0.67283664,3689.7,3689.3,2.71054]
[1717816322369,1.25885367,3689.7,3689.3,3.35914947]
[1717816322591,0.21510741,3689.8,3689.3,3.35914947]
[1717816322795,0.67283664,3689.6,3689.3,3.35914947]
[1717816323006,0.21510741,3689.8,3689.3,3.35914947]
[1717816323615,0.67283664,3689.7,3689.3,3.35914947]
[1717816323969,0.21510741,3689.8,3689.3,3.35914947]
[1717816324196,0.67283664,3689.6,3689.3,3.35914947]
[1717816324398,0.21510741,3689.8,3689.5,2.71038]
[1717816339242,0.58787743,3689.7,3689.5,2.71038]
[1717816339528,0.21510741,3689.8,3689.5,2.71038]
[1717816339735,0.58787743,3689.7,3689.5,2.71038]
[1717816340038,0.21510741,3689.8,3689.5,2.71038]
[1717816340223,0.58787743,3689.6,3689.5,3.35674895]
[1717816340423,0.21510741,3689.8,3689.5,3.35674895]
[1717816340733,0.58787743,3689.7,3689.5,3.35674895]
[1717816340932,0.21510741,3689.8,3689.5,3.35674895]
[1717816341133,0.21510741,3689.8,3689.7,2.71024]
[1717816341434,0.21510741,3689.8,3689.7,5.18394]
[1717816344534,0.21510741,3689.8,3689.7,2.71024]
[1717816354046,0.80337778,3689.8,3689.7,2.71024]
[1717816367775,0.58827037,3689.8,3689.7,2.71024]
[1717816368228,0.58601703,3690.1,3689.7,2.71024]
[1717816368533,0.58601703,3690.0,3689.7,2.71024]
[1717816368740,0.58601703,3690.3,3690.0,2.70997]
[1717816368895,0.58601703,3690.2,3690.0,2.70997]
[1717816369237,1.17433156,3690.1,3690.0,2.70997]
[1717816373554,0.58831453,3690.1,3690.0,2.70997]
[1717816373851,0.48166087,3690.2,3690.0,2.70997]
[1717816374012,0.58845137,3690.1,3690.0,2.70997]
[1717816374765,0.58850875,3690.1,3690.0,2.70997]
[1717816374950,0.23812968,3690.1,3690.0,2.70997]
[1717816375128,0.82663843,3690.1,3690.0,2.70997]
[1717816402775,1.54863843,3690.1,3690.0,2.70997]
[1717816410366,2.13450015,3690.1,3690.0,2.70997]
[1717816410685,1.54863843,3690.1,3690.0,2.70997]
[1717816411498,2.13450015,3690.1,3690.0,2.70997]
[1717816411699,1.54863843,3690.1,3690.0,2.70997]
[1717816412198,2.13450015,3690.1,3690.0,2.70997]
[1717816412408,1.54863843,3690.1,3690.0,2.70997]
[1717816412762,2.13450015,3690.1,3690.0,2.70997]
[1717816412963,1.54863843,3690.1,3690.0,2.70997]
[1717816413196,2.13450015,3690.1,3690.0,2.70997]
[1717816413394,1.54863843,3690.1,3690.0,2.70997]
[1717816413907,2.13450015,3690.1,3690.0,2.70997]
[1717816423419,1.41250015,3690.1,3690.0,2.70997]
[1717816436236,0.82663843,3690.1,3690.0,2.70997]
[1717816436438,1.41250015,3690.1,3690.0,2.70997]
[1717816438168,0.82663843,3690.1,3690.0,2.70997]
[1717816438347,1.41250015,3690.1,3690.0,2.70997]
[1717816438956,0.82663843,3690.1,3690.0,2.70997]
[1717816439152,0.82663843,3690.1,3690.0,3.207407]
[1717816439645,1.41250015,3690.1,3690.0,3.207407]
[1717816439847,0.82663843,3690.1,3690.0,3.207407]
[1717816440257,1.41250015,3690.1,3690.0,3.207407]
[1717816440451,0.82663843,3690.1,3690.0,3.207407]
[1717816443143,1.54863843,3690.1,3690.0,3.207407]
[1717816445356,0.82663843,3690.1,3690.0,5.516107]
[1717816445559,1.54863843,3690.1,3690.0,5.516107]
[1717816447157,0.82663843,3690.1,3690.0,5.516107]
[1717816447387,1.54863843,3690.1,3690.0,5.516107]
[1717816451271,1.54863843,3690.1,3690.0,5.01867]
[1717816451473,0.96012968,3690.1,3690.0,5.01867]
[1717816451654,1.54876644,3690.1,3690.0,2.70997]
[1717816455092,0.82676644,3690.1,3690.0,2.70997]
[1717816455293,1.54876644,3690.1,3690.0,2.70997]
[1717816474672,0.82676644,3690.1,3690.0,2.70997]
[1717816474883,1.54876644,3690.1,3690.0,2.980967]
[1717816475464,1.54876644,3690.1,3690.0,2.70997]
[1717816476590,2.13459454,3690.1,3690.0,2.70997]
[1717816476763,1.54876644,3690.1,3690.0,2.70997]
[1717816478378,2.13459454,3690.1,3690.0,2.70997]
[1717816478678,1.54876644,3690.1,3690.0,2.70997]
[1717816479381,2.13459454,3690.1,3690.0,2.70997]
[1717816479539,1.54876644,3690.1,3690.0,2.70997]
[1717816480243,2.13459454,3690.1,3690.0,2.70997]
[1717816480556,1.54876644,3690.1,3690.0,2.70997]
[1717816481376,2.13459454,3690.1,3690.0,2.70997]
[1717816481573,1.54876644,3690.1,3690.0,2.70997]
[1717816482272,2.13459454,3690.1,3690.0,2.70997]
[1717816483935,2.13459454,3690.1,3689.6,2.2605]
[1717816483936,2.4467,3690.0,3689.6,2.71029]
[1717816484220,0.5858281,3689.9,3689.6,2.71029]
[1717816484381,0.722,3689.7,3689.6,2.71029]
[1717816484716,1.3078281,3689.7,3689.6,2.71029]
[1717816484922,1.896545,3689.7,3689.6,2.71029]
[1717816485422,1.31061026,3689.7,3689.6,2.71029]
[1717816485771,1.896545,3689.7,3689.6,2.71029]
[1717816485972,1.31061026,3689.7,3689.6,2.71029]
[1717816488917,3.75731026,3689.7,3689.6,2.71029]
[1717816490883,1.31061026,3689.7,3689.6,2.71029]
[1717816493229,1.31061026,3689.7,3689.6,2.981319]
[1717816498616,0.58861026,3689.7,3689.6,2.981319]
[1717816498795,1.31061026,3689.7,3689.6,2.981319]
[1717816499008,2.4467,3690.2,3689.6,2.981319]
[1717816499325,0.722,3689.7,3689.6,2.981319]
[1717816499915,1.31053522,3689.7,3689.6,2.981319]
[1717816502311,1.31053522,3689.7,3689.6,2.71029]
[1717816505549,1.31053522,3689.7,3689.2,2.71059]
[1717816505712,0.722,3689.4,3689.2,2.71059]
[1717816506920,0.58853522,3689.3,3689.2,2.71059]
[1717816507951,1.31053522,3689.3,3689.2,2.71059]
[1717816508110,0.722,3689.3,3689.2,2.981649]
[1717816508308,0.58853522,3689.3,3689.2,2.981649]
[1717816511365,0.58853522,3689.3,3689.2,5.240349]
[1717816511862,0.21811664,3690.0,3689.6,2.71025]
[1717816512062,0.722,3689.7,3689.6,2.71025]
[1717816512844,0.694,3689.7,3689.6,2.71025]
[1717816513228,0.21811664,3690.0,3689.6,2.981275]
[1717816513559,0.722,3689.7,3689.6,5.451575]
[1717816514235,0.21811664,3690.0,3689.6,5.451575]
[1717816514435,0.21811664,3690.0,3689.8,2.71017]
[1717816514656,0.722,3689.9,3689.8,2.71017]
[1717816515158,0.21811664,3690.0,3689.8,2.71017]
[1717816515525,0.21811664,3690.0,3689.9,2.4703]
[1717816518847,0.21811664,3690.0,3689.9,3.86315466]
[1717816519050,0.722,3690.6,3689.9,4.60210538]
[1717816519386,0.722,3690.6,3690.0,1.39285466]
[1717816519743,0.722,3690.6,3690.5,2.70965]
[1717816520462,3.1578,3690.6,3690.5,2.70965]
[1717816521586,2.4358,3690.5,3690.1,2.70993]
[1717816521794,0.722,3690.2,3690.1,2.70993]
[1717816525494,0.722,3690.2,3689.7,2.71024]
[1717816525675,0.722,3689.8,3689.7,2.71024]
[1717816525850,1.31086622,3689.8,3689.7,2.71024]
[1717816531271,1.31086622,3689.8,3689.7,2.981264]
[1717816531472,0.58886622,3689.8,3689.7,2.981264]
[1717816531681,2.4358,3690.5,3689.7,2.981264]
[1717816532003,0.722,3689.9,3689.7,2.71024]
[1717816532498,0.61204942,3689.8,3689.7,2.71024]
[1717816533897,2.4358,3690.5,3689.7,2.71024]
[1717816533898,0.722,3690.0,3689.7,6.53649466]
[1717816535604,3.79277933,3690.9,3690.1,2.7099]
[1717816535899,0.722,3690.2,3690.1,2.7099]
[1717816536260,1.33399649,3690.2,3690.1,2.7099]
[1717816536605,0.61199649,3690.2,3690.1,2.7099]
[1717816536974,0.722,3690.3,3690.1,2.7099]
[1717816537281,0.61199649,3690.2,3690.1,2.7099]
[1717816537503,0.722,3690.3,3690.1,2.7099]
[1717816537812,0.61199649,3690.2,3690.1,2.7099]
[1717816538107,0.722,3690.3,3690.1,2.7099]
[1717816538307,0.61199649,3690.2,3690.1,2.7099]
[1717816538462,0.722,3690.3,3690.1,2.7099]
[1717816538665,0.61196999,3690.2,3690.1,2.7099]
[1717816538991,0.722,3690.3,3690.1,2.7099]
[1717816539165,0.61196999,3690.2,3690.1,2.7099]
[1717816539667,0.722,3690.3,3690.1,2.7099]
[1717816539863,0.61199649,3690.2,3690.1,2.7099]
[1717816540116,0.722,3690.3,3690.1,2.7099]
[1717816540324,0.61199649,3690.2,3690.1,2.7099]
[1717816540477,0.722,3690.3,3690.1,2.7099]
[1717816540817,0.61199649,3690.2,3690.1,2.7099]
[1717816541173,0.722,3690.3,3690.1,2.7099]
[1717816541405,0.61199649,3690.2,3690.1,2.7099]
[1717816541801,0.722,3690.3,3690.1,2.7099]
[1717816542011,0.61199649,3690.2,3690.1,2.7099]
[1717816542219,0.722,3690.3,3690.1,2.7099]
[1717816542577,0.61199649,3690.2,3690.1,2.7099]
[1717816543410,0.722,3690.3,3690.1,2.7099]
[1717816543619,0.61199649,3690.2,3690.1,2.7099]
[1717816543812,0.722,3690.3,3690.1,2.7099]
[1717816543999,0.61199649,3690.2,3690.1,2.7099]
[1717816544204,0.722,3690.3,3690.1,2.7099]
[1717816544377,0.61199649,3690.2,3690.1,2.7099]
[1717816544708,0.722,3690.3,3690.1,2.7099]
[1717816544905,0.61199649,3690.2,3690.1,2.7099]
[1717816545907,0.722,3690.3,3690.1,2.7099]
[1717816546208,0.61199649,3690.2,3690.1,2.7099]
[1717816546411,0.722,3690.3,3690.1,2.7099]
[1717816546900,0.61190822,3690.2,3690.1,2.7099]
[1717816547281,0.722,3690.3,3690.1,2.7099]
[1717816547485,0.61190822,3690.2,3690.1,2.7099]
[1717816547911,0.722,3690.3,3690.1,2.7099]
[1717816548295,0.61190822,3690.2,3690.1,2.7099]
[1717816548597,0.722,3690.3,3690.1,2.7099]
[1717816548821,0.61190822,3690.2,3690.1,2.7099]
[1717816549319,0.722,3690.3,3690.1,2.7099]
[1717816549687,0.61190822,3690.2,3690.1,2.7099]
[1717816550024,0.722,3690.3,3690.1,2.7099]
[1717816550222,0.61190822,3690.2,3690.1,2.7099]
[1717816550531,0.722,3690.3,3690.1,2.7099]
[1717816550820,0.61190822,3690.2,3690.1,2.7099]
[1717816550986,0.722,3690.3,3690.1,2.7099]
[1717816551187,0.61190822,3690.2,3690.1,2.7099]
[1717816551435,0.722,3690.3,3690.1,2.7099]
[1717816551624,0.61190822,3690.2,3690.1,2.7099]
[1717816551800,0.722,3690.3,3690.1,2.7099]
[1717816552001,0.61190822,3690.2,3690.1,2.7099]
[1717816552516,1.30781598,3690.3,3690.1,2.7099]
[1717816552722,0.61190822,3690.2,3690.1,2.7099]
[1717816553123,1.30781598,3690.3,3690.1,2.7099]
[1717816553426,0.61190822,3690.2,3690.1,2.7099]
[1717816553909,0.722,3690.3,3690.1,2.7099]
[1717816554111,0.61189055,3690.2,3690.1,2.7099]
[1717816554824,0.722,3690.3,3690.1,2.7099]
[1717816555004,3.36046215,3690.2,3690.1,2.7099]
[1717816555212,3.57260653,3690.2,3690.1,2.7099]
[1717816555415,3.57260653,3690.2,3689.7,2.71024]
[1717816555615,0.722,3689.8,3689.7,2.71024]
[1717816556030,1.33389055,3689.8,3689.7,2.71024]
[1717816561816,3.70879055,3689.8,3689.3,2.71053]
[1717816562041,0.722,3689.4,3689.3,2.71053]
[1717816562351,1.33376697,3689.4,3689.3,2.71053]
[1717816567339,0.61176697,3689.4,3689.3,2.71053]
[1717816567673,0.722,3689.4,3689.3,2.71053]
[1717816567875,1.33331671,3689.4,3689.3,2.71053]
[1717816572545,0.61131671,3689.4,3689.3,2.71053]
[1717816572746,1.33331671,3689.4,3689.3,2.71053]
[1717816577181,0.61131671,3689.4,3689.3,2.71053]
[1717816577379,1.33331671,3689.4,3689.3,2.71053]
[1717816577577,0.722,3689.4,3689.3,2.71053]
[1717816577786,1.33331671,3689.4,3689.3,2.71053]
[1717816591295,1.91913269,3689.4,3689.3,2.71053]
[1717816591888,1.33331671,3689.4,3689.3,2.71053]
[1717816592552,1.91913269,3689.4,3689.3,2.71053]
[1717816592747,1.33331671,3689.4,3689.3,2.71053]
[1717816593410,1.91913269,3689.4,3689.3,2.71053]
[1717816593612,1.33331671,3689.4,3689.3,2.71053]
[1717816594342,1.91913269,3689.4,3689.3,2.71053]
[1717816594499,1.33331671,3689.4,3689.3,2.71053]
[1717816595096,1.91913269,3689.4,3689.3,2.71053]
[1717816595297,1.33331671,3689.4,3689.3,2.71053]
[1717816595914,1.91913269,3689.4,3689.3,2.71053]
[1717816596132,1.33331671,3689.4,3689.3,2.71053]
[1717816600360,1.91913269,3689.4,3689.3,2.71053]
[1717816600555,1.33331671,3689.4,3689.3,2.71053]
[1717816601238,1.91913269,3689.4,3689.3,2.71053]
[1717816601548,1.33331671,3689.4,3689.3,2.71053]
[1717816602353,3.97162998,3689.4,3688.9,2.71081]
[1717816602516,0.722,3689.0,3688.9,2.71081]
[1717816603124,1.32052551,3689.0,3688.9,2.71081]
[1717816608883,1.32052551,3689.0,3688.5,2.7111]
[1717816609100,0.722,3688.6,3688.5,2.7111]
[1717816609686,1.31532163,3688.6,3688.5,2.7111]
[1717816624635,1.31532163,3688.6,3688.1,5.0579]
[1717816624812,0.722,3688.2,3688.1,5.0579]
[1717816629441,0.722,3688.2,3688.1,2.7114]
[1717816629857,1.3122953,3688.2,3688.1,2.7114]
[1717816630066,0.722,3688.2,3688.1,2.7114]
[1717816634109,1.31226846,3688.2,3688.1,2.7114]
[1717816635029,1.31226846,3688.2,3687.7,2.7117]
[1717816635240,0.722,3687.9,3687.7,2.7117]
[1717816635454,0.59022373,3687.8,3687.7,2.7117]
[1717816641061,0.59022373,3687.8,3687.3,5.13669]
[1717816641262,0.722,3687.4,3687.3,5.13669]
[1717816641433,1.31202693,3687.4,3687.3,5.13669]
[1717816642084,1.31202693,3687.4,3687.3,2.71199]
[1717816660549,0.59002693,3687.4,3687.3,2.71199]
[1717816660713,1.31202693,3687.4,3687.3,2.71199]
[1717816661033,0.722,3687.4,3687.3,2.71199]
[1717816661197,1.31153041,3687.4,3687.3,2.71199]
[1717816672519,0.58953041,3687.4,3687.3,2.71199]
[1717816672720,0.58953041,3687.4,3687.3,5.393889]
[1717816673233,0.722,3687.5,3687.3,5.393889]
[1717816673534,0.56971194,3687.4,3687.3,5.393889]
[1717816682217,0.56971194,3687.4,3687.3,5.12269]
[1717816682612,0.722,3687.5,3687.3,5.12269]
[1717816682846,0.56716283,3687.4,3687.3,5.12269]
[1717816683065,0.722,3687.5,3687.3,5.12269]
[1717816683256,0.56716283,3687.4,3687.3,5.12269]
[1717816683477,2.2672,3688.3,3687.8,2.71161]
[1717816683624,0.722,3687.9,3687.8,2.71161]
[1717816684464,1.28914466,3687.9,3687.8,2.71161]
[1717816689761,3.57154466,3687.9,3687.8,2.71161]
[1717816689983,3.92869913,3687.9,3687.8,2.71161]
[1717816690390,3.92869913,3687.9,3687.4,2.71191]
[1717816690576,0.722,3687.5,3687.4,2.71191]
[1717816690978,1.28214738,3687.5,3687.4,2.71191]
[1717816691585,0.56014738,3687.5,3687.4,2.71191]
[1717816691902,1.28214738,3687.5,3687.4,2.71191]
[1717816692991,0.56014738,3687.5,3687.4,2.71191]
[1717816693290,1.2807797,3687.5,3687.4,2.71191]
[1717816698257,3.6100797,3687.5,3687.4,2.71191]
[1717816699410,1.2807797,3687.5,3687.4,2.71191]
[1717816728727,1.86703502,3687.5,3687.4,2.71191]
[1717816728907,1.2807797,3687.5,3687.4,2.71191]
[1717816729594,1.86703502,3687.5,3687.4,2.71191]
[1717816729797,1.2807797,3687.5,3687.4,2.71191]
[1717816734015,1.27246172,3687.5,3687.4,2.71191]
[1717816742923,0.55046172,3687.5,3687.4,2.71191]
[1717816743335,0.722,3687.5,3687.4,2.71191]
[1717816743539,1.27234186,3687.5,3687.4,2.71191]
[1717816746446,0.55034186,3687.5,3687.4,7.07825566]
[1717816746650,2.4584,3688.5,3687.4,1.39285466]
[1717816746651,0.58629227,3688.4,3687.4,1.39285466]
[1717816746854,0.58629227,3688.3,3687.8,2.71159]
[1717816747054,0.722,3687.9,3687.8,2.71159]
[1717816747367,0.58629227,3688.4,3687.8,2.71159]
[1717816747660,0.722,3687.9,3687.8,2.71159]
[1717816753239,0.22442578,3688.4,3687.8,2.71159]
[1717816753439,0.722,3687.9,3687.8,2.71159]
[1717816759035,1.27270361,3687.9,3687.8,2.71159]
[1717816767870,1.27270361,3687.9,3687.4,2.71191]
[1717816768058,0.722,3687.5,3687.4,2.71191]
[1717816768661,1.27257081,3687.5,3687.4,2.71191]
[1717816768984,3.56347081,3687.5,3687.4,2.71191]
[1717816772960,3.56347081,3687.5,3686.8,2.71231]
[1717816773158,0.722,3686.9,3686.8,2.71231]
[1717816773483,1.27213119,3686.9,3686.8,2.71231]
[1717816801309,0.55013119,3686.9,3686.8,2.71231]
[1717816801514,0.722,3686.9,3686.8,2.71231]
[1717816801680,1.27183346,3686.9,3686.8,2.71231]
[1717816802179,0.54983346,3686.9,3686.8,4.96931]
[1717816803190,0.54983346,3686.9,3686.8,5.466241]
[1717816803505,0.722,3687.2,3686.8,5.466241]
[1717816803707,0.54975559,3686.9,3686.8,4.96931]
[1717816804016,0.722,3687.2,3686.8,4.96931]
[1717816804312,0.722,3687.0,3686.8,4.96931]
[1717816804611,0.722,3687.0,3686.8,2.71231]
[1717816804987,0.54990218,3686.9,3686.8,2.71231]
[1717816807680,0.722,3687.2,3686.8,2.71231]
[1717816808017,0.54990218,3686.9,3686.8,2.71231]
[1717816808215,0.722,3687.2,3686.8,2.71231]
[1717816808414,0.54990218,3686.9,3686.8,2.71231]
[1717816808913,0.722,3687.2,3686.8,2.71231]
[1717816809082,0.54990218,3686.9,3686.8,2.71231]
[1717816809283,0.722,3687.2,3686.8,2.71231]
[1717816809514,0.54990218,3686.9,3686.8,2.71231]
[1717816809815,0.722,3687.0,3686.8,2.71231]
[1717816810020,0.54990218,3686.9,3686.8,2.71231]
[1717816810784,0.722,3687.2,3686.8,2.71231]
[1717816811298,0.54990218,3687.1,3686.8,2.71231]
[1717816811701,0.722,3687.0,3686.8,2.71231]
[1717816812099,0.54990218,3686.9,3686.8,2.71231]
[1717816816803,0.722,3687.1,3686.8,2.71231]
[1717816816999,0.54987925,3686.9,3686.8,2.71231]
[1717816817214,0.722,3687.1,3686.8,2.71231]
[1717816817690,0.54987925,3687.0,3686.8,2.71231]
[1717816829349,0.722,3687.2,3686.8,2.71231]
[1717816829634,0.586325,3687.3,3686.8,2.71231]
[1717816829635,0.54988385,3686.9,3686.8,2.71231]
[1717816829841,0.586325,3687.3,3687.1,2.71211]
[1717816830016,0.722,3687.2,3687.1,2.71211]
[1717816833423,1.308325,3687.2,3687.1,2.71211]
[1717816834247,1.85820885,3687.2,3687.1,2.71211]
[1717816834619,1.13620885,3687.2,3687.1,2.71211]
[1717816834922,1.85820885,3687.2,3687.1,2.71211]
[1717816840227,1.27188385,3687.2,3687.1,2.71211]
[1717816840434,1.85820885,3687.2,3687.1,2.71211]
[1717816840941,1.27188385,3687.2,3687.1,2.71211]
[1717816841351,1.85820885,3687.2,3687.1,2.71211]
[1717816842010,1.27188385,3687.2,3687.1,2.71211]
[1717816842408,1.85820885,3687.2,3687.1,2.71211]
[1717816842814,1.27188385,3687.2,3687.1,2.71211]
[1717816860964,0.54988385,3687.2,3687.1,2.71211]
[1717816861182,0.722,3687.2,3687.1,2.71211]
[1717816861378,1.27185635,3687.2,3687.1,2.71211]
[1717816861744,0.54985635,3687.2,3687.1,2.71211]
[1717816862083,0.586325,3687.3,3687.2,2.2757]
[1717816862380,0.722,3688.0,3687.8,2.71161]
[1717816862550,1.308325,3688.0,3687.8,2.71161]
[1717816862873,0.722,3688.0,3687.8,2.71161]
[1717816863282,0.722,3687.9,3687.8,2.71161]
[1717816864391,1.25337342,3687.9,3687.8,2.71161]
[1717816878508,0.53137342,3687.9,3687.8,2.71161]
[1717816878847,0.722,3687.9,3687.8,2.71161]
[1717816879137,1.25366512,3687.9,3687.8,2.71161]
[1717816879336,0.53166512,3687.9,3687.8,2.71161]
[1717816879530,0.722,3687.9,3687.8,2.71161]
[1717816879736,0.94967766,3687.9,3687.8,2.71161]
[1717816879922,1.48134278,3687.9,3687.8,2.71161]
[1717816891881,0.75934278,3687.9,3687.8,2.71161]
[1717816892175,1.48134278,3687.9,3687.8,2.71161]
[1717816892590,0.75934278,3687.9,3687.8,2.71161]
[1717816892753,1.48134278,3687.9,3687.8,2.71161]
[1717816893445,0.75934278,3687.9,3687.8,2.71161]
[1717816893652,1.48134278,3687.9,3687.8,2.71161]
[1717816899389,0.75934278,3687.9,3687.8,2.71161]
[1717816899594,1.48134278,3687.9,3687.8,2.71161]
[1717816900412,0.75934278,3687.9,3687.8,2.71161]
[1717816900687,1.48134278,3687.9,3687.8,2.71161]
[1717816901631,0.75934278,3687.9,3687.8,2.71161]
[1717816901931,1.48134278,3687.9,3687.8,2.71161]
[1717816910669,0.75934278,3687.9,3687.8,2.71161]
[1717816910869,1.48134278,3687.9,3687.8,2.71161]
[1717816911387,0.75934278,3687.9,3687.8,2.71161]
[1717816911597,1.48134278,3687.9,3687.8,2.71161]
[1717816918674,0.75934278,3687.9,3687.8,2.71161]
[1717816918988,1.48134278,3687.9,3687.8,2.71161]
[1717816921488,0.75934278,3687.9,3687.8,2.71161]
[1717816921672,1.48134278,3687.9,3687.8,2.71161]
[1717816921987,1.25366512,3687.9,3687.8,2.71161]
[1717816922691,0.53166512,3687.9,3687.8,2.71161]
[1717816923868,0.722,3688.0,3687.8,2.71161]
[1717816924071,0.53172069,3687.9,3687.8,2.71161]
[1717816926592,1.25372069,3687.9,3687.8,2.71161]
[1717816926758,0.722,3687.9,3687.8,2.71161]
[1717816927058,1.25372069,3687.9,3687.8,2.71161]
[1717816929260,3.69242069,3687.9,3687.8,2.71161]
[1717816929469,0.53172069,3687.9,3687.8,2.71161]
[1717816929765,0.722,3687.9,3687.8,2.71161]
[1717816929996,0.53171605,3687.9,3687.8,2.71161]
[1717816930204,1.25371605,3687.9,3687.8,2.71161]
[1717816930376,0.722,3687.9,3687.8,2.71161]
[1717816930558,0.53171605,3687.9,3687.8,2.982771]
[1717816930757,0.53171605,3687.9,3687.8,5.420071]
[1717816931381,0.53198462,3687.9,3687.8,5.420071]
[1717816931783,2.4387,3688.7,3688.2,2.71132]
[1717816931784,0.586325,3688.5,3688.2,2.71132]
[1717816931987,0.722,3688.3,3688.2,2.71132]
[1717816939234,1.25430863,3688.3,3688.2,2.71132]
[1717816964146,0.53230863,3688.3,3688.2,2.71132]
[1717816964352,1.25430863,3688.3,3688.2,2.71132]
[1717816964667,1.25418366,3688.3,3688.2,2.71132]
[1717816967517,1.25418366,3688.3,3688.2,2.982452]
[1717816967725,0.53218366,3688.3,3688.2,6.63450666]
[1717816968018,0.58612407,3689.2,3689.0,2.71076]
[1717816968019,1.30812407,3689.2,3689.0,2.71076]
[1717816968221,1.30812407,3689.2,3689.1,0.271076]
[1717816968222,0.58612407,3689.2,3689.1,0.271076]
[1717816968537,2.3669,3689.7,3689.3,2.71046]
[1717816968741,0.722,3689.4,3689.3,2.71046]